[Event "44th Chess Olympiad Open 2022"]
[Site "Chennai"]
[Date "2022.08.08"]
[Round "10.13"]
[White "Gazik, Viktor"]
[Black "Sethuraman, S.P."]
[Result "1-0"]
[ECO "C11"]
[WhiteElo "2544"]
[BlackElo "2623"]
[Annotator "TA"]
[PlyCount "105"]
[EventDate "2022.07.29"]
[EventType "team-tourn"]
[EventCountry "IND"]
[SourceTitle "playchess.com"]
[Source "ChessBase"]
[SourceQuality "1"]
[WhiteTeam "Slovakia"]
[BlackTeam "India"]
[WhiteTeamCountry "SVK"]
[BlackTeamCountry "IND"]
[TimeControl "40/5400+30:1800+30"]

{[%evp 15,105,6,14,6,28,5,0,0,10,6,4,10,16,22,19,23,20,9,35,35,34,23,27,18,33,32,25,31,26,26,39,25,45,22,79,79,80,81,96,70,107,93,114,88,130,137,229,230,415,413,453,390,417,445,436,432,412,0,369,0,401,300,648,647,602,494,452,445,729,722,706,684,681,645,631,551,3134,2938,2047,0,279,0,2497,2457,6045,3247,29988,29989,29989,29989,12845,12844]} 1. e4 {[%emt 0:00:03]} e6 {[%emt 0:00:18]} 2. d4 {[%emt 0:02:02]} d5 {[%emt 0:00:06]} 3. Nc3 {[%emt 0:01:26]} Nf6 {[%emt 0:00:06]} 4. e5 {[%emt 0:00:36]} Nfd7 {[%emt 0:00:06]} 5. f4 {[%emt 0:00:58]} c5 {[%emt 0:00:05]} 6. Nf3 {[%emt 0:00:03]} Nc6 {[%emt 0:00:05]} 7. Be3 {[%emt 0:00:03]} Be7 {[%emt 0:00:06]} 8. Qd2 {[%emt 0:02:27]} a6 {[%emt 0:00:08]} 9. a3 {[%emt 0:02:27] C11: French: Classical System: 4 e5 and 4 Bg5 dxe4.} b5 {[%emt 0:00:12]} 10. Be2 {[%emt 0:00:51]} O-O {[%emt 0:00:08]} 11. O-O {[%emt 0:01:00] The position is equal.} Qc7 {[%emt 0:00:03]} 12. dxc5 {[%emt 0:15:48]} Nxc5 {[%emt 0:01:27]} 13. Nd4 {[%emt 0:01:53]} Ne4 {[%emt 0:00:06]} 14. Nxe4 {[%emt 0:01:30]} dxe4 {[%emt 0:00:05]} 15. Qc3 {[%emt 0:15:54]} Bd7 {[%emt 0:00:18][%cal Bc8d7,Bd7c6,Bc6d5,Bd5b3][%mdl 32] [#]} 16. Nxc6 $146 {[%emt 0:12:43]} ({Predecessor:} 16. Nb3 Rfc8 17. Qd2 Bf8 18. Rfd1 Be8 19. c3 Ne7 20. Bc5 Bc6 21. Bd6 Qb7 22. Nd4 {½-½ (70) Rutkus,R (2307)-Voveris,G (2415) ICCF email 2018}) 16... Qxc6 {[%emt 0:11:38]} 17. Qxc6 {[%emt 0:02:07]} Bxc6 {[%emt 0:00:05]} 18. Kf2 {[%emt 0:03:54]} f6 {[%emt 0:00:46]} 19. exf6 {[%emt 0:00:48]} Bxf6 {[%emt 0:02:00]} 20. c3 {[%emt 0:01:16]} Bd5 {[%emt 0:05:23]} 21. Rad1 {[%emt 0:04:10][%cal Ba1d1,Bd1d7,Bd7b7][%mdl 32]} Bb3 {[%emt 0:08:05]} 22. Rd7 {[%emt 0:06:10]} Rfd8 {[%emt 0:00:54]} 23. Rb7 {[%emt 0:07:04]} Rd6 {[%emt 0:07:37]} 24. g4 {[%emt 0:02:20]} h6 {[%emt 0:16:10]} (24... Bd5 $11 25. Rd1 h6) 25. g5 $16 {[%emt 0:04:49]} hxg5 {[%emt 0:01:12]} 26. fxg5 {[%emt 0:00:04]} Be5 {[%emt 0:00:03]} 27. h4 {[%emt 0:00:24]} Bd5 {[%emt 0:04:12]} 28. Re7 {[%emt 0:00:16] White is more active.} Rdd8 {[%emt 0:09:34]} 29. Bd4 {[%emt 0:03:02]} (29. Kg2 {looks sharper.} Bd6 30. Ref7 Bc4 31. Bxc4 bxc4 32. Bc1) 29... Bxd4+ {[%emt 0:09:14]} 30. cxd4 {[%emt 0:00:01]} Rac8 {[%emt 0:00:15]} (30... Re8 $16 31. Rxe8+ Rxe8) 31. Ke3 $18 {[%emt 0:00:20]} Rf8 {[%emt 0:00:05] [#] Prevents Rff7.} (31... Re8 32. Ra7 Rf8) 32. g6 $1 {[%emt 0:00:55]} Rc2 {[%emt 0:01:20][%cal Oc2e2] Hoping for ...Rxe2+!} 33. Rxf8+ {[%emt 0:07:18]} Kxf8 {[%emt 0:00:04][%mdl 4096] Endgame KRB-KRB} 34. Rf7+ {[%emt 0:00:03]} Kg8 {[%emt 0:00:02]} 35. Rd7 {[%emt 0:02:04][%cal Rd7d8]} Kf8 {[%emt 0:00:07]} 36. Rf7+ {[%emt 0:00:29]} Kg8 {[%emt 0:00:04]} 37. Rd7 {[%emt 0:00:03][%cal Rd7d8]} Kf8 {[%emt 0:00:05]} 38. b4 {[%emt 0:00:56]} Ra2 $2 {[%emt 0:01:48]} (38... Rc3+ 39. Kf4 Rc2) 39. Rf7+ {[%emt 0:00:20]} Kg8 {[%emt 0:00:04]} 40. Rc7 {[%emt 0:00:29][%cal Rc7c8]} Kf8 {[%emt 0:01:33]} (40... Rxa3+ $2 41. Kf4 Kf8 42. Ke5) 41. h5 {[%emt 0:08:18]} (41. Rf7+ Kg8 $18) 41... e5 {[%emt 0:10:17]} (41... Rxa3+ $2 42. Kf4 a5 43. Rc8+ Ke7 44. h6 gxh6 45. g7 axb4 {[#]} 46. Re8+ $3 {[%mdl 512]} Kxe8 47. g8=Q+ Kd7 48. Qf7+ Kc8 49. Qe8+ Kc7 50. Qe7+ Kb8 51. Qd8+ Ka7 52. Qd7+ Bb7 53. Qxb5) (41... Ra1 $142 42. Kf4 Rg1) 42. dxe5 {[%emt 0:00:52]} Rxa3+ {[%emt 0:00:05]} 43. Kd4 {[%emt 0:06:04]} Be6 {[%emt 0:00:05]} 44. Ra7 {[%emt 0:03:02] aiming for Bxb5.} ({Less strong is} 44. Kxe4 Rb3 45. Kd4 Rb2 $18) 44... Ra2 {[%emt 0:00:42]} 45. Ke3 {[%emt 0:05:12]} Ra4 {[%emt 0:01:00]} 46. Ra8+ {[%emt 0:01:04]} Ke7 {[%emt 0:00:22]} 47. Ra7+ $2 {[%emt 0:00:06]} (47. h6 gxh6 48. g7 Ra3+ 49. Kf4) 47... Kf8 {[%emt 0:00:05]} 48. Ra8+ $2 {[%emt 0:00:09]} ({Weaker is} 48. Kxe4 Rxb4+ 49. Ke3 Bd5 $16) (48. Rb7) 48... Ke7 {[%emt 0:00:08]} 49. h6 {[%emt 0:00:10]} gxh6 {[%emt 0:03:14]} 50. g7 {[%emt 0:00:09]} Rxb4 {[%emt 0:04:05] [#]} 51. Bg4 $1 {[%emt 0:01:19][%mdl 512]} Rb3+ {[%emt 0:00:22]} 52. Kf4 {[%emt 0:00:19]} Rf3+ {[%emt 0:01:13]} 53. Kxe4 {[%emt 0:00:59] Weighted Error Value: White=0.55/Black=0.55} 1-0

[Event "44th Chess Olympiad Open 2022"]
[Site "Chennai"]
[Date "2022.08.08"]
[Round "10.13"]
[White "Repka, Christopher"]
[Black "Puranik, Abhimanyu"]
[Result "0-1"]
[ECO "A30"]
[WhiteElo "2516"]
[BlackElo "2612"]
[Annotator "TA"]
[PlyCount "90"]
[EventDate "2022.07.29"]
[EventType "team-tourn"]
[EventCountry "IND"]
[SourceTitle "playchess.com"]
[Source "ChessBase"]
[SourceQuality "1"]
[WhiteTeam "Slovakia"]
[BlackTeam "India"]
[WhiteTeamCountry "SVK"]
[BlackTeamCountry "IND"]
[TimeControl "40/5400+30:1800+30"]

{[%evp 13,90,29,24,0,0,0,27,0,50,54,48,43,67,64,62,54,92,24,83,79,131,119,86,78,83,71,71,65,99,104,102,96,104,103,104,96,295,95,97,97,83,77,91,55,122,84,106,42,42,44,187,182,203,188,183,190,838,91,83,76,107,0,0,0,0,0,0,0,0,0,0,0,0,0,0,-828,-796,-796,-780]} 1. Nf3 {[%emt 0:00:05]} Nf6 {[%emt 0:00:06]} 2. c4 {[%emt 0:00:13]} c5 {[%emt 0:00:04]} 3. Nc3 {[%emt 0:00:25]} e6 {[%emt 0:00:19]} 4. g3 {[%emt 0:00:19]} b6 {[%emt 0:00:16]} 5. Bg2 {[%emt 0:03:50]} Bb7 {[%emt 0:00:05]} 6. O-O {[%emt 0:00:38]} Be7 {[%emt 0:00:05]} 7. Re1 {[%emt 0:01:40]} Ne4 {[%emt 0:00:36]} 8. Qc2 {[%emt 0:01:28] A30: Symmetrical English: Double Fianchetto and Hedgehog.} Nxc3 {[%emt 0:03:30]} 9. dxc3 {[%emt 0:00:25]} f5 $5 {[%emt 0:03:37][%mdl 4] Leaves trodden paths.} 10. Bf4 {[%emt 0:00:15][%cal Oe2e4] [#] White has an edge.} Be4 $146 {[%emt 0:07:37]} (10... g5 $1 $11 11. Bxb8 (11. Be5 O-O $11) 11... Qxb8) ({Predecessor:} 10... g5 11. Be5 O-O 12. Rad1 Be4 13. Qd2 Nc6 14. Bd6 Bxd6 15. Qxd6 Qf6 16. b4 cxb4 17. cxb4 {1-0 (34) Romanov,E (2613)-Rasulov,V (2508) Nakhchivan 2015}) 11. Qd2 $14 {[%emt 0:00:08]} Nc6 {[%emt 0:10:35]} 12. Rad1 {[%emt 0:00:07]} Qc8 {[%emt 0:05:04]} 13. Bd6 {[%emt 0:05:08]} Bf6 {[%emt 0:07:48]} 14. Bh3 {[%emt 0:07:27][%cal Bg2h3,Bh3g4,Bg4h5,Bh5f3][%mdl 32]} h6 {[%emt 0:05:53] Prevents Ng5.} 15. Qe3 {[%emt 0:10:22]} (15. g4 $16) 15... Ne7 {[%emt 0:07:27]} (15... Na5 $11) 16. Ne5 {[%emt 0:16:49]} Bg5 {[%emt 0:00:49]} (16... Bxe5 $142 17. Bxe5 O-O) 17. f4 $16 {[%emt 0:01:24]} Bf6 {[%emt 0:00:02] [#]} 18. Bg4 $1 {[%emt 0:13:01]} Bxe5 {[%emt 0:07:40]} 19. Bh5+ {[%emt 0:18:27]} g6 {[%emt 0:00:07] And now ...Bxd6 would win.} 20. Bxe5 {[%emt 0:00:05]} Rg8 {[%emt 0:02:53]} 21. Bf3 {[%emt 0:00:09]} Qb7 {[%emt 0:00:46]} 22. Rd6 {[%emt 0:02:04]} Rd8 {[%emt 0:10:45]} 23. Red1 {[%emt 0:00:04]} Nc8 {[%emt 0:03:00]} 24. R6d2 {[%emt 0:00:01]} Ke7 $2 {[%emt 0:00:13]} (24... Bxf3 $16 {might work better.} 25. exf3 (25. Qxf3 Qxf3 26. exf3 d6 $16) 25... Ke7) 25. Bd6+ $2 {[%emt 0:02:30]} (25. Bxe4 $1 $18 Qxe4 26. Qxe4 fxe4 27. Bc7) 25... Nxd6 {[%emt 0:00:05]} 26. Rxd6 {[%emt 0:00:03]} Bxf3 {[%emt 0:04:10]} 27. exf3 {[%emt 0:00:03]} Rge8 {[%emt 0:00:36]} 28. g4 {[%emt 0:04:28]} Rf8 {[%emt 0:06:17]} ({Black should play} 28... Kf7 $14) 29. b4 {[%emt 0:04:05]} Rc8 {[%emt 0:07:50]} 30. Qf2 {[%emt 0:06:57]} (30. Rxd7+ Qxd7 31. Rxd7+ Kxd7 $14) (30. g5 $16) 30... Rc7 $1 $14 {[%emt 0:01:22]} 31. Qh4+ {[%emt 0:00:45]} Ke8 {[%emt 0:00:06]} (31... g5 $1 $14 32. Qxh6 (32. fxg5 Qxf3 33. gxh6+ Rf6 $11) 32... Qxf3) 32. R1d3 $1 $18 {[%emt 0:01:07]} ({Don't take} 32. Qxh6 $6 Qxf3 33. Qxg6+ Kd8 $14) 32... fxg4 {[%emt 0:02:01]} 33. Qxh6 {[%emt 0:00:02]} gxf3 {[%emt 0:01:23] ...Qe4 is the strong threat.} 34. Qxg6+ {[%emt 0:00:02]} Kd8 $2 {[%emt 0:00:15]} (34... Ke7) 35. Qg7 $2 {[%emt 0:02:10]} (35. Rxe6 $1 $18 Qa6 36. Qg7) 35... Re8 $16 {[%emt 0:00:08] [#]} 36. b5 $1 {[%emt 0:00:26] aiming for Qf7.} Kc8 {[%emt 0:00:23]} 37. Qg6 {[%emt 0:00:56] Prevents Qe4.} ({White should try} 37. Qh7 $16) 37... Rh8 $11 {[%emt 0:00:14][%cal Of3f2]} 38. Qg3 $40 {[%emt 0:00:48][%mdl 128] Black needs to defend precisely.} Qe4 {[%emt 0:01:09]} 39. Qxf3 {[%emt 0:00:28]} Qe1+ {[%emt 0:00:11]} 40. Kg2 {[%emt 0:00:34][%cal Rf3a8]} Rg8+ {[%emt 0:00:08]} 41. Kh3 {[%emt 0:30:02][%cal Rf3a8]} Rh8+ {[%emt 0:31:15]} (41... Kb8 $5 42. Rd1 (42. Rxd7 $2 Qg1 $19) 42... Rh8+ 43. Kg2 Rg8+ 44. Kh3 Rh8+ 45. Kg2 Rg8+ 46. Kh3 $11) 42. Kg2 {[%emt 0:00:05][%cal Rf3a8]} Rg8+ {[%emt 0:00:00]} 43. Kh3 {[%emt 0:00:00][%cal Rf3a8]} Kb8 {[%emt 0:00:00] Prevents Qa8+. Really sharp!} 44. Rxd7 $2 {[%emt 0:00:00][%mdl 8192] [#]} (44. Rd1 $11 Rh8+ 45. Kg2 Rg8+ 46. Kh3 Rh8+ 47. Kg2 Rg8+ 48. Kh3) 44... Qg1 $1 $19 {[%emt 0:00:00] ( -> ...Rh8+)} 45. Rd8+ {[%emt 0:00:00]} Rc8 {[%emt 0:00:00] Quite a comeback for Black.  Weighted Error Value: White=0.54/Black=0.22 (precise)} 0-1

[Event "44th Chess Olympiad Open 2022"]
[Site "Chennai"]
[Date "2022.08.08"]
[Round "10.14"]
[White "Saric, Ivan"]
[Black "Jumabayev, Rinat"]
[Result "1/2-1/2"]
[ECO "C11"]
[WhiteElo "2680"]
[BlackElo "2617"]
[Annotator "TA"]
[PlyCount "157"]
[EventDate "2022.07.29"]
[EventType "team-tourn"]
[EventCountry "IND"]
[SourceTitle "playchess.com"]
[Source "ChessBase"]
[SourceQuality "1"]
[WhiteTeam "Croatia"]
[BlackTeam "Kazakhstan"]
[WhiteTeamCountry "CRO"]
[BlackTeamCountry "KAZ"]
[TimeControl "40/5400+30:1800+30"]

{[%evp 14,157,13,16,20,22,22,25,20,18,30,22,26,-8,21,26,39,24,33,24,24,6,34,10,23,14,83,-41,-50,-119,-120,-110,0,0,0,0,0,0,17,28,34,29,36,6,12,0,0,-166,4,12,4,0,0,-10,21,14,69,55,54,60,44,58,56,56,56,62,69,69,55,55,68,68,68,66,138,133,136,138,138,147,177,178,172,111,136,136,158,136,138,101,120,114,133,127,134,134,191,191,189,189,189,189,232,170,193,179,220,218,226,218,263,256,294,239,398,354,341,191,300,298,355,356,319,347,325,65,65,8,8,8,8,8,8,8,8,0,8,8,8,8,8,8,8,8,8,8]} 1. e4 {[%emt 0:00:02]} e6 {[%emt 0:00:10]} 2. d4 {[%emt 0:00:02]} d5 {[%emt 0:00:05]} 3. Nc3 {[%emt 0:00:03]} Nf6 {[%emt 0:00:06]} 4. e5 {[%emt 0:00:07]} Nfd7 {[%emt 0:00:04]} 5. f4 {[%emt 0:00:04]} c5 {[%emt 0:00:03]} 6. Nf3 {[%emt 0:00:05]} Nc6 {[%emt 0:00:03]} 7. Be3 {[%emt 0:00:06]} a6 {[%emt 0:00:04]} 8. a3 {[%emt 0:00:31]} b5 {[%emt 0:00:06] C11: French: Classical System: 4 e5 and 4 Bg5 dxe4.} 9. Ne2 {[%emt 0:00:50]} Be7 {[%emt 0:12:32]} 10. c3 {[%emt 0:02:07]} Rb8 {[%emt 0:05:26] [#] White has an edge.} 11. Ng3 $146 {[%emt 0:06:55]} ({Predecessor:} 11. b4 cxb4 12. axb4 Nb6 13. Ng3 Nc4 14. Kf2 Kd7 15. f5 Kc7 16. Bxc4 bxc4 17. fxe6 fxe6 {1-0 (39) Kukel,I (2285)-Srvatka,I (2196) Slovakia 2008}) 11... cxd4 {[%emt 0:12:43]} 12. cxd4 {[%emt 0:01:14]} b4 {[%emt 0:00:11]} 13. Bd3 {[%emt 0:01:39]} bxa3 {[%emt 0:00:53]} 14. bxa3 {[%emt 0:00:10]} Qa5+ {[%emt 0:01:55]} 15. Bd2 {[%emt 0:00:55]} Qb6 {[%emt 0:00:22]} 16. Rb1 {[%emt 0:06:35]} Qa7 {[%emt 0:02:12]} 17. Rxb8 {[%emt 0:01:06]} Ndxb8 {[%emt 0:00:32]} 18. Qa1 {[%emt 0:00:57]} a5 {[%emt 0:04:45]} 19. f5 {[%emt 0:05:51] White wants to play Nh5.} Ba6 {[%emt 0:06:20]} (19... O-O $11) 20. Bc2 {[%emt 0:01:31]} (20. Bxa6 $1 $16 Qxa6 21. Nh5) 20... O-O $1 $15 {[%emt 0:09:58]} 21. Be3 {[%emt 0:26:13]} (21. Qc3 $15 Rc8 22. Qb2) 21... Nd7 $17 {[%emt 0:07:49][%cal Od7e5]} 22. Kf2 {[%emt 0:04:11] [#]} Rc8 {[%emt 0:25:05]} ({Black should try} 22... Ndxe5 $1 $17 {[%mdl 512] And now ...Ng4+ would win.} 23. dxe5 (23. Nxe5 $2 Nxe5 24. dxe5 Bc5 $19) 23... Bc5) 23. fxe6 $11 {[%emt 0:05:18]} fxe6 {[%emt 0:00:56][%cal Oc6e5]} 24. Rc1 $1 {[%emt 0:00:24]} h6 {[%emt 0:00:08]} 25. Ba4 {[%emt 0:09:30]} Qb7 {[%emt 0:00:21]} 26. Nh5 {[%emt 0:01:20]} Nd8 {[%emt 0:05:47]} 27. Rxc8 {[%emt 0:00:38]} Qxc8 {[%emt 0:00:02]} 28. Qb1 {[%emt 0:01:14] Threatening mate with Qg6.} Nf8 {[%emt 0:00:19] Against Qg6} (28... Qc4 $2 29. Qg6 $1 Bh4+ 30. Nxh4 $18) 29. Qb6 {[%emt 0:06:11]} Qc4 {[%emt 0:02:14] ...Qf1+ is the strong threat.} 30. Bd1 $2 {[%emt 0:02:01] [#] Active counter play!} (30. Be8 $1 $11) 30... a4 $2 {[%emt 0:03:04]} ({Don't play} 30... Nd7 $6 31. Qxa5 Nc6 32. Qd2 $11 (32. Qa4 Nb6 $11)) (30... Qf1+ $1 $19 31. Kg3 Bd3) 31. Nd2 $1 {[%emt 0:01:13]} Qb5 $132 {[%emt 0:00:22][%mdl 2048] Black is fighting back} 32. Qc7 {[%emt 0:01:57]} Nc6 {[%emt 0:00:49]} 33. g3 {[%emt 0:02:43]} Kf7 {[%emt 0:00:18]} 34. Nf4 {[%emt 0:00:17]} g6 {[%emt 0:01:06]} (34... Kg8 $11) 35. h4 {[%emt 0:01:41]} (35. Ne2 {seems wilder.} g5 36. Nc3 Qb7 37. Qxb7 Bxb7 38. Bxa4 Bxa3 39. Nb5) 35... Kg8 {[%emt 0:00:16]} 36. Be2 {[%emt 0:01:48]} Qb7 {[%emt 0:00:14]} 37. Qxb7 {[%emt 0:00:10]} Bxb7 {[%emt 0:00:01]} 38. Nb1 {[%emt 0:00:57]} Na5 {[%emt 0:00:10]} 39. Bb5 {[%emt 0:00:53]} Bc6 {[%emt 0:00:53]} 40. Bxc6 {[%emt 0:00:10]} Nxc6 {[%emt 0:00:04]} 41. Ne2 {[%emt 0:30:14]} Nd7 {[%emt 0:09:12]} 42. Bxh6 {[%emt 0:00:00]} Nb6 $1 {[%emt 0:01:55]} 43. Be3 {[%emt 0:00:00]} Kf7 {[%emt 0:08:44]} (43... Nc4 $14) 44. Nec3 $16 {[%emt 0:00:00]} Na5 {[%emt 0:02:20]} 45. Ke2 {[%emt 0:00:00]} Nac4 {[%emt 0:02:39]} 46. Bc1 {[%emt 0:00:00]} Kg7 {[%emt 0:00:36]} 47. Kd3 {[%emt 0:00:00]} Kf7 {[%emt 0:00:23]} 48. Nd1 {[%emt 0:00:00]} (48. Nb5 $18) 48... Na5 {[%emt 0:04:24]} 49. Nb2 {[%emt 0:00:00]} Kg7 {[%emt 0:03:21]} 50. Bd2 {[%emt 0:00:00]} Nc6 {[%emt 0:00:28]} 51. Nc3 {[%emt 0:00:00]} Bxa3 {[%emt 0:00:07]} 52. Ncxa4 {[%emt 0:00:00]} Na8 {[%emt 0:02:21]} 53. Nd1 {[%emt 0:00:00]} Nc7 {[%emt 0:00:01]} 54. Ne3 {[%emt 0:00:00]} Nb5 {[%emt 0:00:13]} (54... Nb4+ $16 55. Bxb4 Bxb4) 55. Nc2 $18 {[%emt 0:00:00]} Be7 {[%emt 0:00:14][%cal Og6g5]} 56. Nc3 {[%emt 0:00:00]} Nc7 {[%emt 0:01:17]} 57. Ne2 {[%emt 0:00:00]} Nb5 {[%emt 0:00:26]} 58. Ng1 {[%emt 0:00:00]} Nd8 {[%emt 0:01:14]} 59. Nf3 {[%emt 0:00:00]} Nf7 {[%emt 0:00:04]} 60. g4 {[%emt 0:00:00][%cal Bg3g4,Bg4g5][%mdl 32]} Nh6 {[%emt 0:00:51]} 61. Ne3 {[%emt 0:00:00]} Na7 {[%emt 0:00:23]} 62. g5 {[%emt 0:00:00]} Nf7 {[%emt 0:00:02]} 63. Ng2 {[%emt 0:00:00]} Nc6 $2 {[%emt 0:00:42]} (63... Nd8 64. Nf4 Kf7) 64. Nf4 {[%emt 0:00:00]} Nfd8 {[%emt 0:00:07]} 65. Nh2 {[%emt 0:01:44]} (65. Kc2 $142) 65... Ba3 {[%emt 0:00:20]} (65... Nb4+ $142 66. Ke2 Nbc6) 66. Ng4 {[%emt 0:00:22]} Bb2 {[%emt 0:00:26]} 67. Bc3 {[%emt 0:00:47]} Bxc3 {[%emt 0:02:05]} 68. Kxc3 {[%emt 0:00:04][%mdl 4096] Endgame KNN-KNN} Kf7 {[%emt 0:00:11]} 69. Nf6 $2 {[%emt 0:02:09]} (69. Ne2 $18) 69... Ne7 $1 $14 {[%emt 0:00:21]} 70. h5 {[%emt 0:00:17]} ({White should play} 70. Ng2 $14) 70... gxh5 $11 {[%emt 0:00:13] The position is equal.} 71. N6xh5 {[%emt 0:00:05] Black must now prevent Kb4.} Ndc6 {[%emt 0:00:34]} 72. Ng3 {[%emt 0:01:56]} Ng6 {[%emt 0:00:14]} 73. Nge2 {[%emt 0:00:06]} Nh4 {[%emt 0:00:25]} 74. Nc1 {[%emt 0:00:32]} Nf3 {[%emt 0:00:39]} 75. g6+ {[%emt 0:00:07]} Kg7 {[%emt 0:00:09]} 76. Nb3 {[%emt 0:03:00]} Nfxe5 {[%emt 0:00:18]} 77. dxe5 {[%emt 0:00:14]} Nxe5 {[%emt 0:00:05]} 78. Nd4 {[%emt 0:00:27]} Nxg6 {[%emt 0:00:07]} 79. Nxg6 {[%emt 0:00:17] White really could win this.  Weighted Error Value: White=0.15 (very precise) /Black=0.20 (precise)} 1/2-1/2

[Event "44th Chess Olympiad Open 2022"]
[Site "Chennai"]
[Date "2022.08.08"]
[Round "10.14"]
[White "Kozul, Zdenko"]
[Black "Urazayev, Arystanbek"]
[Result "0-1"]
[ECO "E06"]
[WhiteElo "2602"]
[BlackElo "2430"]
[Annotator "TA"]
[PlyCount "90"]
[EventDate "2022.07.29"]
[EventType "team-tourn"]
[EventCountry "IND"]
[SourceTitle "playchess.com"]
[Source "ChessBase"]
[SourceQuality "1"]
[WhiteTeam "Croatia"]
[BlackTeam "Kazakhstan"]
[WhiteTeamCountry "CRO"]
[BlackTeamCountry "KAZ"]
[TimeControl "40/5400+30:1800+30"]

{[%evp 12,90,22,16,29,20,27,10,15,11,11,11,16,14,29,26,37,36,39,25,46,39,64,52,45,45,61,37,37,37,37,30,53,37,37,37,37,37,43,45,76,76,71,71,87,71,71,76,83,83,79,56,46,16,14,0,0,0,0,-5,-8,-154,-134,-123,-77,-187,-187,-187,-180,-180,-176,-166,-161,-493,-391,-29984,-29985,-29985,-29986,-29983,-29984]} 1. d4 {[%emt 0:00:12]} Nf6 {[%emt 0:00:50]} 2. Nf3 {[%emt 0:00:19]} e6 {[%emt 0:00:45]} 3. c4 {[%emt 0:00:11]} d5 {[%emt 0:00:05]} 4. g3 {[%emt 0:01:05]} Be7 {[%emt 0:01:57]} 5. Bg2 {[%emt 0:00:41]} O-O {[%emt 0:00:22]} 6. O-O {[%emt 0:00:08]} c6 {[%emt 0:00:23]} 7. Nc3 {[%emt 0:03:34]} a5 {[%emt 0:02:12] E06: Closed Catalan: Early deviations.} 8. Nd2 {[%emt 0:00:00][%cal Bf3d2,Bd2b1,Bb1c3][%mdl 32]} b5 {[%emt 0:00:40]} 9. cxb5 {[%emt 0:00:00]} cxb5 {[%emt 0:00:06] The position is equal.} 10. Nxb5 {[%emt 0:00:03]} Qb6 {[%emt 0:01:20]} 11. a4 {[%emt 0:00:43]} Nc6 {[%emt 0:00:13]} 12. Nb1 {[%emt 0:05:21]} Ba6 {[%emt 0:04:28]} 13. N1c3 {[%emt 0:03:10] [#]} Rac8 $146 {[%emt 0:06:41]} ({Predecessor:} 13... Bb4) 14. Bg5 {[%emt 0:07:17]} Na7 {[%emt 0:10:58][%cal Ra6b5]} 15. Qd2 {[%emt 0:05:01]} Bxb5 {[%emt 0:11:04]} 16. axb5 {[%emt 0:15:30]} Rc4 {[%emt 0:01:22]} 17. e3 {[%emt 0:01:44] And now Rfb1 would win.} Nxb5 {[%emt 0:19:14]} 18. Bxf6 {[%emt 0:07:32]} Bxf6 {[%emt 0:01:47]} 19. Nxb5 {[%emt 0:01:11]} (19. Na4 $5 {[%cal Ra4b6]} Qc7 20. Rfc1 $14 (20. Nc5 Be7 $14)) 19... Qxb5 {[%emt 0:00:02]} 20. Rxa5 {[%emt 0:00:21]} Qb6 {[%emt 0:01:16]} 21. Rfa1 {[%emt 0:07:35]} h5 {[%emt 0:05:05]} 22. Bf3 {[%emt 0:02:46]} h4 {[%emt 0:03:36]} 23. Bd1 {[%emt 0:01:15]} Rb8 {[%emt 0:10:08]} 24. b3 {[%emt 0:01:27][%cal Bb2b3,Bb3b4,Bb4b5][%mdl 32]} Rcc8 {[%emt 0:01:26]} 25. Ra7 {[%emt 0:00:53]} Rc7 {[%emt 0:04:25]} 26. Rxc7 {[%emt 0:01:41]} Qxc7 {[%emt 0:00:04]} 27. b4 {[%emt 0:00:11]} Qd6 {[%emt 0:03:40]} 28. Rb1 {[%emt 0:00:39]} e5 {[%emt 0:00:04]} 29. dxe5 {[%emt 0:02:24]} Bxe5 {[%emt 0:00:02][%cal Rh4g3]} 30. f4 {[%emt 0:05:58]} Bf6 {[%emt 0:02:37]} 31. Bf3 {[%emt 0:01:37]} Be7 {[%emt 0:02:52]} 32. b5 {[%emt 0:09:58]} hxg3 {[%emt 0:00:13]} 33. Bxd5 {[%emt 0:01:23]} gxh2+ {[%emt 0:00:42]} 34. Kh1 {[%emt 0:00:32]} Qg6 {[%emt 0:01:19]} 35. Rd1 {[%emt 0:12:38]} Rxb5 {[%emt 0:00:43]} 36. Qxh2 {[%emt 0:00:06]} (36. Qd3 $11 Qh5 37. Qxb5 Qxd1+ 38. Kxh2 Qd2+ 39. Bg2) 36... Rb6 $1 $17 {[%emt 0:03:15]} ({Much weaker is} 36... Rb1 $6 37. Bxf7+ $1 Kf8 38. Bxg6 $11) 37. Bf3 {[%emt 0:01:31]} Qf5 {[%emt 0:01:06]} (37... Qe6 $142 38. Qf2 Qh3+ 39. Kg1 Bc5) 38. Qe2 {[%emt 0:00:47]} (38. Kg1 $17) 38... Qh3+ $19 {[%emt 0:00:52]} 39. Kg1 {[%emt 0:00:06]} Rg6+ {[%emt 0:00:46]} 40. Bg2 {[%emt 0:00:07] [#]} Bc5 $1 {[%emt 0:01:00]} 41. Kf1 {[%emt 0:08:26]} Bxe3 {[%emt 0:06:46] ( -> ...Qh1+)} 42. Qc2 $2 {[%emt 0:09:49]} (42. Bxh3 $2 Rg1#) (42. Rd8+ Kh7 43. Qf3 (43. Bxh3 $2 Rg1#) (43. Rh8+ $2 Kxh8 44. Qf3 Qh2 $19)) 42... Qg4 {[%emt 0:10:49]} ({Not} 42... Qh4 43. Qc8+ Kh7 44. Qh3 Qxh3 45. Bxh3 $17) 43. f5 {[%emt 0:01:23]} (43. Rd8+ $19 Kh7 44. Qe4) 43... Qf4+ {[%emt 0:01:54] Black mates.} 44. Ke1 {[%emt 0:00:23]} Qg3+ {[%emt 0:00:18]} 45. Kf1 {[%emt 0:00:08]} Rg4 {[%emt 0:02:55] Weighted Error Value: White=0.46/Black=0.04 (flawless)} 0-1